[Event "Titled Tuesday Blitz November 01 Late 2022"]
[White "Pakleza, Zbigniew"]
[Black "Zakhartsov, Vladimir"]
[WhiteFideId "1119290"]
[BlackFideId "4145097"]
[WhiteElo "2411"]
[BlackElo "2492"]
[Result "1-0"]
[Round "07"]
[TimeControl "180+1"]
[Date "2022.11.01"]
[WhiteClock "0:01:47"]
[BlackClock "0:02:02"]

1. d4 {[%clk 0:03:00]}  Nf6 {[%clk 0:02:59]} 2. Nf3 {[%clk 0:02:58]}  c5 {[%clk 0:02:59]} 3. c3 {[%clk 0:02:58]}  e6 {[%clk 0:02:58]} 4. Bf4 {[%clk 0:02:58]}  d5 {[%clk 0:02:57]} 5. e3 {[%clk 0:02:58]}  Nc6 {[%clk 0:02:55]} 6. Nbd2 {[%clk 0:02:58]}  Bd6 {[%clk 0:02:55]} 7. Bg3 {[%clk 0:02:58]}  O-O {[%clk 0:02:54]} 8. Bd3 {[%clk 0:02:58]}  Qe7 {[%clk 0:02:53]} 9. Ne5 {[%clk 0:02:58]}  Nd7 {[%clk 0:02:52]} 10. Nxd7 {[%clk 0:02:49]}  Bxd7 {[%clk 0:02:51]} 11. Bxd6 {[%clk 0:02:38]}  Qxd6 {[%clk 0:02:52]} 12. dxc5 {[%clk 0:02:38]}  Qxc5 {[%clk 0:02:52]} 13. Bxh7+ {[%clk 0:02:33]}  Kxh7 {[%clk 0:02:27]} 14. Qh5+ {[%clk 0:02:34]}  Kg8 {[%clk 0:02:28]} 15. Ne4 {[%clk 0:02:34]}  Qb5 {[%clk 0:02:21]} 16. Ng5 {[%clk 0:02:32]}  Rfd8 {[%clk 0:02:21]} 17. Qxf7+ {[%clk 0:02:31]}  Kh8 {[%clk 0:02:22]} 18. Qh5+ {[%clk 0:02:31]}  Kg8 {[%clk 0:02:22]} 19. Qf7+ {[%clk 0:02:08]}  Kh8 {[%clk 0:02:21]} 20. O-O-O {[%clk 0:02:09]}  Ne5 {[%clk 0:02:08]} 21. Qh5+ {[%clk 0:02:02]}  Kg8 {[%clk 0:02:08]} 22. Qh7+ {[%clk 0:02:02]}  Kf8 {[%clk 0:02:08]} 23. Qh8+ {[%clk 0:01:58]}  Ke7 {[%clk 0:02:08]} 24. Qxg7+ {[%clk 0:01:59]}  Kd6 {[%clk 0:02:09]} 25. Ne4+ {[%clk 0:01:48]}  Kc6 {[%clk 0:02:04]} 26. Qxe5 {[%clk 0:01:48]}  dxe4 {[%clk 0:02:02]} 27. Qd6# {[%clk 0:01:47]} 1-0


[Site "https://www.chess.com"]

[Event "Titled Tuesday Blitz November 01 Late 2022"]
[White "Pap, Gyula"]
[Black "Bartel, Mateusz"]
[WhiteFideId "725323"]
[BlackFideId "1112635"]
[WhiteElo "2519"]
[BlackElo "2530"]
[Result "1-0"]
[Round "07"]
[TimeControl "180+1"]
[Date "2022.11.01"]
[WhiteClock "0:00:07"]
[BlackClock "0:00:10"]

1. d4 {[%clk 0:03:00]}  Nf6 {[%clk 0:02:58]} 2. c4 {[%clk 0:03:00]}  e6 {[%clk 0:02:58]} 3. Nc3 {[%clk 0:03:01]}  Bb4 {[%clk 0:02:57]} 4. Qb3 {[%clk 0:03:01]}  c5 {[%clk 0:02:55]} 5. dxc5 {[%clk 0:03:01]}  Nc6 {[%clk 0:02:54]} 6. a3 {[%clk 0:03:00]}  Bxc5 {[%clk 0:02:53]} 7. Nf3 {[%clk 0:03:00]}  O-O {[%clk 0:02:37]} 8. Bg5 {[%clk 0:03:00]}  Be7 {[%clk 0:02:31]} 9. e3 {[%clk 0:03:00]}  b6 {[%clk 0:02:28]} 10. Be2 {[%clk 0:03:00]}  Bb7 {[%clk 0:02:28]} 11. O-O {[%clk 0:02:59]}  Rc8 {[%clk 0:02:29]} 12. Qa2 {[%clk 0:02:59]}  Ng4 {[%clk 0:02:13]} 13. Bf4 {[%clk 0:02:52]}  g5 {[%clk 0:02:07]} 14. Bg3 {[%clk 0:02:43]}  f5 {[%clk 0:02:06]} 15. Nd5 {[%clk 0:02:17]}  h6 {[%clk 0:01:22]} 16. Rad1 {[%clk 0:02:03]}  Rf7 {[%clk 0:01:10]} 17. Nxe7+ {[%clk 0:01:58]}  Nxe7 {[%clk 0:01:11]} 18. h3 {[%clk 0:01:52]}  Nf6 {[%clk 0:01:03]} 19. Ne5 {[%clk 0:01:18]}  Rg7 {[%clk 0:01:03]} 20. f3 {[%clk 0:01:19]}  Qe8 {[%clk 0:00:56]} 21. b4 {[%clk 0:01:15]}  h5 {[%clk 0:00:49]} 22. Qd2 {[%clk 0:01:01]}  h4 {[%clk 0:00:31]} 23. Nxd7 {[%clk 0:00:48]}  Nxd7 {[%clk 0:00:30]} 24. Qxd7 {[%clk 0:00:49]}  hxg3 {[%clk 0:00:29]} 25. Qxb7 {[%clk 0:00:39]}  Nd5 {[%clk 0:00:28]} 26. Qxc8 {[%clk 0:00:16]}  Qxc8 {[%clk 0:00:27]} 27. cxd5 {[%clk 0:00:17]}  exd5 {[%clk 0:00:16]} 28. Rxd5 {[%clk 0:00:18]}  Qe8 {[%clk 0:00:15]} 29. Bc4 {[%clk 0:00:13]}  Qxe3+ {[%clk 0:00:14]} 30. Kh1 {[%clk 0:00:14]}  Kh7 {[%clk 0:00:15]} 31. Rxf5 {[%clk 0:00:13]}  Qxa3 {[%clk 0:00:14]} 32. Rf6 {[%clk 0:00:07]}  Qc3 {[%clk 0:00:12]} 33. Rc6 {[%clk 0:00:05]}  Qd4 {[%clk 0:00:12]} 34. Re1 {[%clk 0:00:03]}  Qd2 {[%clk 0:00:10]} 35. Rg1 {[%clk 0:00:02]}  Re7 {[%clk 0:00:10]} 36. b5 {[%clk 0:00:03]}  Re1 {[%clk 0:00:09]} 37. Bf1 {[%clk 0:00:02]}  Qe3 {[%clk 0:00:08]} 38. Bd3+ {[%clk 0:00:02]}  Kh8 {[%clk 0:00:07]} 39. Rc8+ {[%clk 0:00:02]}  Kg7 {[%clk 0:00:07]} 40. Rc7+ {[%clk 0:00:02]}  Kf6 {[%clk 0:00:07]} 41. Rc6+ {[%clk 0:00:03]}  Ke5 {[%clk 0:00:07]} 42. Bf1 {[%clk 0:00:03]}  Kd4 {[%clk 0:00:06]} 43. Rc4+ {[%clk 0:00:03]}  Kd5 {[%clk 0:00:06]} 44. Re4 {[%clk 0:00:04]}  Qxg1+ {[%clk 0:00:03]} 45. Kxg1 {[%clk 0:00:03]}  Rxe4 {[%clk 0:00:04]} 46. fxe4+ {[%clk 0:00:04]}  Kxe4 {[%clk 0:00:05]} 47. Be2 {[%clk 0:00:04]}  Ke3 {[%clk 0:00:05]} 48. Kf1 {[%clk 0:00:04]}  Kd2 {[%clk 0:00:05]} 49. Bg4 {[%clk 0:00:04]}  Kc3 {[%clk 0:00:05]} 50. Ke1 {[%clk 0:00:04]}  Kc4 {[%clk 0:00:06]} 51. Be2+ {[%clk 0:00:04]}  Kd4 {[%clk 0:00:07]} 52. Bf1 {[%clk 0:00:05]}  Ke3 {[%clk 0:00:07]} 53. Bc4 {[%clk 0:00:05]}  Kd4 {[%clk 0:00:07]} 54. Bf1 {[%clk 0:00:06]}  Ke3 {[%clk 0:00:07]} 55. Be2 {[%clk 0:00:06]}  Ke4 {[%clk 0:00:07]} 56. Kd2 {[%clk 0:00:06]}  Kd4 {[%clk 0:00:08]} 57. Bf1 {[%clk 0:00:06]}  Ke4 {[%clk 0:00:08]} 58. Ke2 {[%clk 0:00:07]}  Kf4 {[%clk 0:00:09]} 59. Kd3 {[%clk 0:00:07]}  Ke5 {[%clk 0:00:09]} 60. Ke3 {[%clk 0:00:07]}  Kd5 {[%clk 0:00:10]} 61. Kf3 {[%clk 0:00:07]} 1-0


[Site "https://www.chess.com"]

[Event "Titled Tuesday Blitz November 01 Late 2022"]
[White "Paravyan, David"]
[Black "Bortnyk, Olexandr"]
[WhiteFideId "4194985"]
[BlackFideId "14120828"]
[WhiteElo "2555"]
[BlackElo "2723"]
[Result "0-1"]
[Round "07"]
[TimeControl "180+1"]
[Date "2022.11.01"]
[WhiteClock "0:00:23"]
[BlackClock "0:01:26"]

1. e4 {[%clk 0:03:00]}  d6 {[%clk 0:02:54]} 2. d4 {[%clk 0:03:00]}  Nf6 {[%clk 0:02:55]} 3. Nc3 {[%clk 0:03:01]}  e5 {[%clk 0:02:55]} 4. Nf3 {[%clk 0:03:01]}  Nbd7 {[%clk 0:02:55]} 5. Bc4 {[%clk 0:03:02]}  Be7 {[%clk 0:02:55]} 6. O-O {[%clk 0:03:02]}  c6 {[%clk 0:02:56]} 7. a4 {[%clk 0:03:02]}  h6 {[%clk 0:02:55]} 8. Re1 {[%clk 0:03:02]}  Qc7 {[%clk 0:02:56]} 9. Bf1 {[%clk 0:02:57]}  Nf8 {[%clk 0:02:53]} 10. b4 {[%clk 0:02:55]}  Ng6 {[%clk 0:02:52]} 11. b5 {[%clk 0:02:49]}  O-O {[%clk 0:02:51]} 12. a5 {[%clk 0:02:47]}  Bg4 {[%clk 0:02:49]} 13. Be3 {[%clk 0:02:27]}  Nd7 {[%clk 0:02:28]} 14. bxc6 {[%clk 0:02:15]}  bxc6 {[%clk 0:02:24]} 15. d5 {[%clk 0:02:15]}  Nf6 {[%clk 0:02:20]} 16. a6 {[%clk 0:01:56]}  cxd5 {[%clk 0:02:16]} 17. Nxd5 {[%clk 0:01:57]}  Nxd5 {[%clk 0:02:16]} 18. Qxd5 {[%clk 0:01:58]}  Bxf3 {[%clk 0:02:15]} 19. gxf3 {[%clk 0:01:59]}  Bg5 {[%clk 0:02:11]} 20. Qb7 {[%clk 0:01:47]}  Rfc8 {[%clk 0:01:44]} 21. Bh3 {[%clk 0:01:47]}  Bxe3 {[%clk 0:01:33]} 22. Rxe3 {[%clk 0:01:07]}  Qd8 {[%clk 0:01:30]} 23. Bxc8 {[%clk 0:01:02]}  Rxc8 {[%clk 0:01:31]} 24. Qxa7 {[%clk 0:00:35]}  Nf4 {[%clk 0:01:31]} 25. Kh1 {[%clk 0:00:34]}  Rxc2 {[%clk 0:01:31]} 26. Rb3 {[%clk 0:00:26]}  Qg5 {[%clk 0:01:26]} 27. Rg1 {[%clk 0:00:23]}  Qxg1+ {[%clk 0:01:26]} 28. Kxg1 {[%clk 0:00:23]}  Rc1# {[%clk 0:01:26]} 0-1


[Site "https://www.chess.com"]

[Event "Titled Tuesday Blitz November 01 Late 2022"]
[White "Pavlidou, Ekaterini"]
[Black "Wessendorf, Thomas, Dr."]
[WhiteFideId "4213262"]
[BlackFideId "4604270"]
[WhiteElo "2125"]
[BlackElo "2280"]
[Result "1-0"]
[Round "07"]
[TimeControl "180+1"]
[Date "2022.11.02"]
[WhiteClock "0:01:34"]
[BlackClock "0:00:14"]

1. d4 {[%clk 0:02:55]}  Nf6 {[%clk 0:02:59]} 2. c4 {[%clk 0:02:55]}  e6 {[%clk 0:02:59]} 3. Nc3 {[%clk 0:02:56]}  Bb4 {[%clk 0:02:59]} 4. e3 {[%clk 0:02:56]}  c5 {[%clk 0:02:58]} 5. a3 {[%clk 0:02:55]}  Bxc3+ {[%clk 0:02:57]} 6. bxc3 {[%clk 0:02:56]}  O-O {[%clk 0:02:56]} 7. Bd3 {[%clk 0:02:56]}  b6 {[%clk 0:02:53]} 8. e4 {[%clk 0:02:56]}  d6 {[%clk 0:02:51]} 9. Ne2 {[%clk 0:02:56]}  e5 {[%clk 0:02:49]} 10. d5 {[%clk 0:02:56]}  Nbd7 {[%clk 0:02:44]} 11. h3 {[%clk 0:02:56]}  Re8 {[%clk 0:02:38]} 12. O-O {[%clk 0:02:53]}  Nf8 {[%clk 0:02:37]} 13. Bg5 {[%clk 0:02:54]}  h6 {[%clk 0:02:36]} 14. Be3 {[%clk 0:02:54]}  Ng6 {[%clk 0:02:36]} 15. Qd2 {[%clk 0:02:54]}  Bd7 {[%clk 0:02:31]} 16. a4 {[%clk 0:02:54]}  a5 {[%clk 0:02:29]} 17. f3 {[%clk 0:02:52]}  Rf8 {[%clk 0:02:24]} 18. g4 {[%clk 0:02:52]}  Nh7 {[%clk 0:02:21]} 19. f4 {[%clk 0:02:48]}  exf4 {[%clk 0:02:19]} 20. Nxf4 {[%clk 0:02:48]}  Ne5 {[%clk 0:02:19]} 21. Be2 {[%clk 0:02:48]}  Qh4 {[%clk 0:02:12]} 22. Kg2 {[%clk 0:02:45]}  Qe7 {[%clk 0:01:54]} 23. Nh5 {[%clk 0:02:42]}  Ng5 {[%clk 0:01:30]} 24. Qc2 {[%clk 0:02:35]}  Qe8 {[%clk 0:01:24]} 25. Bxg5 {[%clk 0:02:29]}  hxg5 {[%clk 0:01:23]} 26. Rf6 {[%clk 0:02:28]}  Ng6 {[%clk 0:01:15]} 27. Raf1 {[%clk 0:02:25]}  Qe5 {[%clk 0:01:10]} 28. R6f2 {[%clk 0:02:07]}  Rae8 {[%clk 0:01:06]} 29. Bd3 {[%clk 0:02:06]}  Nh4+ {[%clk 0:01:01]} 30. Kh1 {[%clk 0:02:05]}  Re7 {[%clk 0:00:54]} 31. Qd2 {[%clk 0:02:05]}  Bxa4 {[%clk 0:00:51]} 32. Rf5 {[%clk 0:02:01]}  Nxf5 {[%clk 0:00:43]} 33. Rxf5 {[%clk 0:01:59]}  Qxf5 {[%clk 0:00:43]} 34. gxf5 {[%clk 0:02:00]}  f6 {[%clk 0:00:42]} 35. h4 {[%clk 0:01:57]}  gxh4 {[%clk 0:00:34]} 36. Qh2 {[%clk 0:01:57]}  b5 {[%clk 0:00:30]} 37. cxb5 {[%clk 0:01:56]}  c4 {[%clk 0:00:29]} 38. Bxc4 {[%clk 0:01:53]}  Rxe4 {[%clk 0:00:28]} 39. Qxd6 {[%clk 0:01:40]}  Rfe8 {[%clk 0:00:21]} 40. Qd7 {[%clk 0:01:36]}  Re1+ {[%clk 0:00:18]} 41. Kh2 {[%clk 0:01:35]}  R8e7 {[%clk 0:00:14]} 42. d6+ {[%clk 0:01:34]}  Kh7 {[%clk 0:00:14]} 43. dxe7 {[%clk 0:01:34]} 1-0


[Site "https://www.chess.com"]

[Event "Titled Tuesday Blitz November 01 Late 2022"]
[White "Pinheiro, Iung Alicio de O."]
[Black "Grot, Blazej"]
[WhiteFideId "2104350"]
[BlackFideId "21835845"]
[WhiteElo "2283"]
[BlackElo "1739"]
[Result "0-1"]
[Round "07"]
[TimeControl "180+1"]
[Date "2022.11.02"]
[WhiteClock "0:00:09"]
[BlackClock "0:00:09"]

1. Nf3 {[%clk 0:03:00]}  Nf6 {[%clk 0:02:58]} 2. g3 {[%clk 0:03:00]}  g6 {[%clk 0:02:57]} 3. Bg2 {[%clk 0:03:01]}  Bg7 {[%clk 0:02:56]} 4. O-O {[%clk 0:03:01]}  O-O {[%clk 0:02:56]} 5. c4 {[%clk 0:03:01]}  d6 {[%clk 0:02:56]} 6. Nc3 {[%clk 0:02:58]}  Nbd7 {[%clk 0:02:56]} 7. d3 {[%clk 0:02:54]}  e5 {[%clk 0:02:56]} 8. Rb1 {[%clk 0:02:54]}  c6 {[%clk 0:02:56]} 9. b4 {[%clk 0:02:53]}  Re8 {[%clk 0:02:57]} 10. Ne1 {[%clk 0:02:40]}  Qc7 {[%clk 0:02:58]} 11. b5 {[%clk 0:02:39]}  a6 {[%clk 0:02:48]} 12. bxc6 {[%clk 0:02:27]}  bxc6 {[%clk 0:02:49]} 13. Qa4 {[%clk 0:02:24]}  Bb7 {[%clk 0:02:45]} 14. Ba3 {[%clk 0:02:22]}  d5 {[%clk 0:02:29]} 15. cxd5 {[%clk 0:02:07]}  cxd5 {[%clk 0:02:30]} 16. Rc1 {[%clk 0:02:07]}  Qd8 {[%clk 0:02:13]} 17. Nc2 {[%clk 0:02:06]}  Rc8 {[%clk 0:01:36]} 18. Nb4 {[%clk 0:01:43]}  a5 {[%clk 0:01:36]} 19. Nbxd5 {[%clk 0:01:40]}  Nxd5 {[%clk 0:01:35]} 20. Bxd5 {[%clk 0:01:35]}  Nb6 {[%clk 0:01:32]} 21. Bxf7+ {[%clk 0:01:00]}  Kxf7 {[%clk 0:01:29]} 22. Qb3+ {[%clk 0:01:00]}  Re6 {[%clk 0:01:10]} 23. Ne4 {[%clk 0:00:34]}  Bxe4 {[%clk 0:01:05]} 24. dxe4 {[%clk 0:00:34]}  a4 {[%clk 0:00:54]} 25. Rxc8 {[%clk 0:00:30]}  Qxc8 {[%clk 0:00:54]} 26. Qb5 {[%clk 0:00:24]}  Qc4 {[%clk 0:00:49]} 27. Qa5 {[%clk 0:00:24]}  h5 {[%clk 0:00:27]} 28. Rc1 {[%clk 0:00:21]}  Qxe4 {[%clk 0:00:23]} 29. Rc7+ {[%clk 0:00:20]}  Kg8 {[%clk 0:00:22]} 30. Qa7 {[%clk 0:00:17]}  Qb1+ {[%clk 0:00:20]} 31. Bc1 {[%clk 0:00:16]}  Nd7 {[%clk 0:00:07]} 32. Kg2 {[%clk 0:00:13]}  Rd6 {[%clk 0:00:06]} 33. Qa8+ {[%clk 0:00:10]}  Kh7 {[%clk 0:00:05]} 34. Qd8 {[%clk 0:00:08]}  Qe4+ {[%clk 0:00:04]} 35. Kh3 {[%clk 0:00:06]}  Qf5+ {[%clk 0:00:04]} 36. Kg2 {[%clk 0:00:06]}  Rd1 {[%clk 0:00:02]} 37. Rc8 {[%clk 0:00:04]}  Qe4+ {[%clk 0:00:02]} 38. Kh3 {[%clk 0:00:05]}  Qf5+ {[%clk 0:00:02]} 39. Kg2 {[%clk 0:00:05]}  Qe4+ {[%clk 0:00:01]} 40. f3 {[%clk 0:00:02]}  Nf6 {[%clk 0:00:02]} 41. Kh3 {[%clk 0:00:03]}  Qf5+ {[%clk 0:00:02]} 42. Kh4 {[%clk 0:00:03]}  Rxd8 {[%clk 0:00:03]} 43. Rxd8 {[%clk 0:00:02]}  Ne4 {[%clk 0:00:03]} 44. fxe4 {[%clk 0:00:02]}  Qf6+ {[%clk 0:00:03]} 45. Kh3 {[%clk 0:00:03]}  Qxd8 {[%clk 0:00:04]} 46. Kg2 {[%clk 0:00:03]}  Qd7 {[%clk 0:00:05]} 47. Bg5 {[%clk 0:00:04]}  Qc6 {[%clk 0:00:06]} 48. h3 {[%clk 0:00:05]}  Bf6 {[%clk 0:00:06]} 49. Kf2 {[%clk 0:00:05]}  Qc2 {[%clk 0:00:07]} 50. Be3 {[%clk 0:00:05]}  Qxa2 {[%clk 0:00:08]} 51. Kf3 {[%clk 0:00:06]}  Qb3 {[%clk 0:00:09]} 52. g4 {[%clk 0:00:07]}  a3 {[%clk 0:00:10]} 53. gxh5 {[%clk 0:00:08]}  Bg5 {[%clk 0:00:09]} 54. h4 {[%clk 0:00:09]}  Qxe3+ {[%clk 0:00:09]} 0-1


[Site "https://www.chess.com"]

[Event "Titled Tuesday Blitz November 01 Late 2022"]
[White "Poliakova, Varvara"]
[Black "Voigt, Martin"]
[WhiteFideId "13518313"]
[BlackFideId "4607228"]
[WhiteElo "1938"]
[BlackElo "2356"]
[Result "1-0"]
[Round "07"]
[TimeControl "180+1"]
[Date "2022.11.02"]
[WhiteClock "0:00:28"]
[BlackClock "0:00:03"]

1. e4 {[%clk 0:02:37]}  c6 {[%clk 0:02:59]} 2. d4 {[%clk 0:02:35]}  d5 {[%clk 0:02:59]} 3. Nd2 {[%clk 0:02:36]}  dxe4 {[%clk 0:02:59]} 4. Nxe4 {[%clk 0:02:37]}  Nf6 {[%clk 0:02:59]} 5. Nxf6+ {[%clk 0:02:38]}  exf6 {[%clk 0:02:59]} 6. c3 {[%clk 0:02:32]}  Bd6 {[%clk 0:02:59]} 7. Bd3 {[%clk 0:02:32]}  O-O {[%clk 0:03:00]} 8. Qc2 {[%clk 0:02:31]}  Re8+ {[%clk 0:03:00]} 9. Ne2 {[%clk 0:02:32]}  h5 {[%clk 0:03:00]} 10. Be3 {[%clk 0:02:27]}  Be6 {[%clk 0:02:55]} 11. O-O-O {[%clk 0:02:24]}  Nd7 {[%clk 0:02:41]} 12. Kb1 {[%clk 0:02:18]}  a5 {[%clk 0:02:39]} 13. Ng3 {[%clk 0:02:13]}  h4 {[%clk 0:02:38]} 14. Nf5 {[%clk 0:02:12]}  Bxf5 {[%clk 0:02:36]} 15. Bxf5 {[%clk 0:02:13]}  a4 {[%clk 0:02:26]} 16. g3 {[%clk 0:02:08]}  h3 {[%clk 0:02:14]} 17. Bxh3 {[%clk 0:02:04]}  b5 {[%clk 0:02:14]} 18. Qf5 {[%clk 0:01:58]}  Nb6 {[%clk 0:02:12]} 19. Bf1 {[%clk 0:01:52]}  Nd5 {[%clk 0:01:59]} 20. Bd2 {[%clk 0:01:47]}  a3 {[%clk 0:01:54]} 21. b3 {[%clk 0:01:45]}  g6 {[%clk 0:01:52]} 22. Qf3 {[%clk 0:01:41]}  Kg7 {[%clk 0:01:46]} 23. Bd3 {[%clk 0:01:38]}  b4 {[%clk 0:01:39]} 24. c4 {[%clk 0:01:37]}  Nc3+ {[%clk 0:01:38]} 25. Bxc3 {[%clk 0:01:37]}  bxc3 {[%clk 0:01:38]} 26. h4 {[%clk 0:01:35]}  f5 {[%clk 0:01:19]} 27. h5 {[%clk 0:01:34]}  Qf6 {[%clk 0:01:19]} 28. hxg6 {[%clk 0:01:31]}  fxg6 {[%clk 0:01:18]} 29. Rh4 {[%clk 0:01:26]}  Rh8 {[%clk 0:01:06]} 30. Rdh1 {[%clk 0:01:22]}  Rxh4 {[%clk 0:01:05]} 31. Rxh4 {[%clk 0:01:23]}  Rh8 {[%clk 0:01:02]} 32. Rxh8 {[%clk 0:01:22]}  Kxh8 {[%clk 0:01:02]} 33. Qxc6 {[%clk 0:01:15]}  Qxd4 {[%clk 0:01:02]} 34. Bc2 {[%clk 0:01:10]}  Qd2 {[%clk 0:00:53]} 35. Qh1+ {[%clk 0:01:07]}  Kg7 {[%clk 0:00:53]} 36. Qd1 {[%clk 0:01:05]}  Bc5 {[%clk 0:00:36]} 37. Qxd2 {[%clk 0:01:02]}  cxd2 {[%clk 0:00:36]} 38. Bd1 {[%clk 0:00:59]}  Bxf2 {[%clk 0:00:34]} 39. Kc2 {[%clk 0:01:00]}  Bxg3 {[%clk 0:00:34]} 40. Kxd2 {[%clk 0:00:58]}  Kf6 {[%clk 0:00:32]} 41. b4 {[%clk 0:00:57]}  Ke5 {[%clk 0:00:29]} 42. Kd3 {[%clk 0:00:56]}  g5 {[%clk 0:00:29]} 43. c5 {[%clk 0:00:55]}  Bf2 {[%clk 0:00:28]} 44. Kc4 {[%clk 0:00:53]}  g4 {[%clk 0:00:27]} 45. b5 {[%clk 0:00:51]}  Be3 {[%clk 0:00:21]} 46. b6 {[%clk 0:00:50]}  Ke6 {[%clk 0:00:12]} 47. Kb5 {[%clk 0:00:40]}  Bf4 {[%clk 0:00:06]} 48. c6 {[%clk 0:00:39]}  Kd6 {[%clk 0:00:03]} 49. c7 {[%clk 0:00:33]}  Kd7 {[%clk 0:00:03]} 50. Bc2 {[%clk 0:00:32]}  Bxc7 {[%clk 0:00:03]} 51. Bxf5+ {[%clk 0:00:30]}  Kd6 {[%clk 0:00:04]} 52. bxc7 {[%clk 0:00:26]}  Kxc7 {[%clk 0:00:04]} 53. Bxg4 {[%clk 0:00:27]}  Kb8 {[%clk 0:00:03]} 54. Ka4 {[%clk 0:00:27]}  Ka7 {[%clk 0:00:03]} 55. Kxa3 {[%clk 0:00:28]} 1-0


[Site "https://www.chess.com"]

[Event "Titled Tuesday Blitz November 01 Late 2022"]
[White "Putnam, Liam"]
[Black "Galchenko, Matvey"]
[WhiteFideId "30938279"]
[BlackFideId "24175480"]
[WhiteElo "2082"]
[BlackElo "2423"]
[Result "0-1"]
[Round "07"]
[TimeControl "180+1"]
[Date "2022.11.01"]
[WhiteClock "0:00:04"]
[BlackClock "0:00:59"]

1. Nf3 {[%clk 0:03:00]}  d5 {[%clk 0:02:58]} 2. b3 {[%clk 0:02:56]}  Bf5 {[%clk 0:02:56]} 3. Bb2 {[%clk 0:02:56]}  e6 {[%clk 0:02:56]} 4. e3 {[%clk 0:02:56]}  Nf6 {[%clk 0:02:56]} 5. c4 {[%clk 0:02:56]}  c6 {[%clk 0:02:56]} 6. Be2 {[%clk 0:02:52]}  Nbd7 {[%clk 0:02:56]} 7. Nh4 {[%clk 0:02:51]}  Bg6 {[%clk 0:02:51]} 8. Nc3 {[%clk 0:02:41]}  Bd6 {[%clk 0:02:48]} 9. d4 {[%clk 0:02:40]}  Be4 {[%clk 0:02:44]} 10. f3 {[%clk 0:02:17]}  Bg6 {[%clk 0:02:44]} 11. Qd2 {[%clk 0:02:13]}  Ne4 {[%clk 0:02:42]} 12. Nxe4 {[%clk 0:02:10]}  Bxe4 {[%clk 0:02:35]} 13. g3 {[%clk 0:02:09]}  Bg6 {[%clk 0:02:31]} 14. O-O-O {[%clk 0:01:44]}  a5 {[%clk 0:02:21]} 15. Nxg6 {[%clk 0:01:19]}  hxg6 {[%clk 0:02:22]} 16. cxd5 {[%clk 0:01:19]}  exd5 {[%clk 0:02:09]} 17. e4 {[%clk 0:01:18]}  dxe4 {[%clk 0:01:55]} 18. fxe4 {[%clk 0:01:16]}  a4 {[%clk 0:01:56]} 19. e5 {[%clk 0:01:04]}  Be7 {[%clk 0:01:56]} 20. Kb1 {[%clk 0:01:00]}  axb3 {[%clk 0:01:53]} 21. axb3 {[%clk 0:01:01]}  Nb6 {[%clk 0:01:54]} 22. e6 {[%clk 0:00:51]}  Qd5 {[%clk 0:01:48]} 23. exf7+ {[%clk 0:00:50]}  Kf8 {[%clk 0:01:48]} 24. Qc2 {[%clk 0:00:46]}  Qa5 {[%clk 0:01:38]} 25. Bc3 {[%clk 0:00:46]}  Bb4 {[%clk 0:01:37]} 26. Bb2 {[%clk 0:00:31]}  Qa2+ {[%clk 0:01:36]} 27. Kc1 {[%clk 0:00:31]}  Nd5 {[%clk 0:01:35]} 28. Rd3 {[%clk 0:00:21]}  g5 {[%clk 0:01:25]} 29. Rf3 {[%clk 0:00:20]}  Rh6 {[%clk 0:01:24]} 30. h4 {[%clk 0:00:20]}  g4 {[%clk 0:01:24]} 31. Rf2 {[%clk 0:00:20]}  Ne3 {[%clk 0:01:16]} 32. Qd3 {[%clk 0:00:15]}  Re6 {[%clk 0:01:05]} 33. Qh7 {[%clk 0:00:11]}  Bd2+ {[%clk 0:00:59]} 34. Kxd2 {[%clk 0:00:11]}  Qxb2+ {[%clk 0:00:59]} 35. Kd3 {[%clk 0:00:04]}  Qc2# {[%clk 0:00:59]} 0-1


[Site "https://www.chess.com"]

[Event "Titled Tuesday Blitz November 01 Late 2022"]
[White "Rios Escobar, Adan"]
[Black "Floresvillar Gonzalez, Luis Migu"]
[WhiteFideId "3403645"]
[BlackFideId "5100542"]
[WhiteElo "2339"]
[BlackElo "2040"]
[Result "1-0"]
[Round "07"]
[TimeControl "180+1"]
[Date "2022.11.02"]
[WhiteClock "0:00:35"]
[BlackClock "0:01:05"]

1. d4 {[%clk 0:03:00]}  d5 {[%clk 0:02:08]} 2. c4 {[%clk 0:02:50]}  c6 {[%clk 0:02:08]} 3. Nf3 {[%clk 0:02:47]}  Nf6 {[%clk 0:02:07]} 4. g3 {[%clk 0:02:48]}  dxc4 {[%clk 0:02:05]} 5. Bg2 {[%clk 0:02:43]}  b5 {[%clk 0:02:03]} 6. O-O {[%clk 0:02:41]}  Bb7 {[%clk 0:02:04]} 7. b3 {[%clk 0:02:40]}  cxb3 {[%clk 0:02:03]} 8. Qxb3 {[%clk 0:02:41]}  Nbd7 {[%clk 0:02:02]} 9. Rd1 {[%clk 0:02:35]}  e6 {[%clk 0:02:01]} 10. Nc3 {[%clk 0:02:34]}  Be7 {[%clk 0:02:00]} 11. Ne5 {[%clk 0:02:29]}  Nxe5 {[%clk 0:01:59]} 12. dxe5 {[%clk 0:02:28]}  Nd7 {[%clk 0:01:53]} 13. Nxb5 {[%clk 0:02:24]}  Qb6 {[%clk 0:01:51]} 14. Nd6+ {[%clk 0:01:44]}  Bxd6 {[%clk 0:01:50]} 15. exd6 {[%clk 0:01:45]}  Nc5 {[%clk 0:01:44]} 16. Qc3 {[%clk 0:01:40]}  O-O {[%clk 0:01:43]} 17. Be3 {[%clk 0:01:32]}  Na4 {[%clk 0:01:43]} 18. Qc2 {[%clk 0:01:20]}  Qa6 {[%clk 0:01:42]} 19. Rab1 {[%clk 0:01:04]}  Nb6 {[%clk 0:01:42]} 20. Be4 {[%clk 0:01:00]}  f5 {[%clk 0:01:38]} 21. Bd3 {[%clk 0:00:58]}  Qa5 {[%clk 0:01:33]} 22. Qb3 {[%clk 0:00:51]}  Qd5 {[%clk 0:01:27]} 23. Bxb6 {[%clk 0:00:47]}  Qxb3 {[%clk 0:01:26]} 24. Rxb3 {[%clk 0:00:46]}  axb6 {[%clk 0:01:26]} 25. Rxb6 {[%clk 0:00:46]}  Bc8 {[%clk 0:01:16]} 26. Rxc6 {[%clk 0:00:43]}  Rxa2 {[%clk 0:01:17]} 27. Bc4 {[%clk 0:00:43]}  Ra7 {[%clk 0:01:10]} 28. Rxc8 {[%clk 0:00:41]}  Rxc8 {[%clk 0:01:06]} 29. Bxe6+ {[%clk 0:00:41]}  Kf8 {[%clk 0:01:06]} 30. Bxc8 {[%clk 0:00:40]}  Ke8 {[%clk 0:01:06]} 31. Bxf5 {[%clk 0:00:37]}  h6 {[%clk 0:01:05]} 32. d7+ {[%clk 0:00:35]}  Kd8 {[%clk 0:01:05]} 33. Rc1 {[%clk 0:00:35]} 1-0


[Site "https://www.chess.com"]